bitfinex/quotes_BTCUSD_20251202
["timestamp","ask_amount","ask_price","bid_price","bid_amount"]
[1764678372375,0.01529,87506.0,87496.0,0.24000925]
[1764678372581,0.22857665,87498.0,87497.0,0.01804]
[1764678372801,0.24000276,87499.0,87497.0,0.01804]
[1764678373002,0.22857289,87500.0,87497.0,0.01804]
[1764678373204,0.22857451,87499.0,87498.0,0.01804]
[1764678373405,0.24000146,87500.0,87498.0,0.01804]
[1764678373606,0.22857404,87499.0,87498.0,0.01804]
[1764678373813,0.01142922,87495.0,87489.0,0.323]
[1764678374015,0.01142935,87494.0,87490.0,0.01804]
[1764678374178,0.01142948,87493.0,87490.0,0.01815496]
[1764678374377,0.26262893,87494.0,87490.0,0.01815496]
[1764678374630,0.22859235,87492.0,87490.0,0.01815496]
[1764678374831,0.02304896,87497.0,87492.0,0.24002049]
[1764678375038,0.21804,87530.0,87495.0,0.01142922]
[1764678375039,0.01142844,87501.0,87495.0,0.01142922]
[1764678375331,0.01142857,87500.0,87495.0,0.24001118]
[1764678375560,0.36250279,87505.0,87497.0,0.01142896]
[1764678375764,0.01142765,87507.0,87503.0,0.01142817]
[1764678375916,0.23997824,87508.0,87504.0,0.02285609]
[1764678376088,0.22855549,87507.0,87504.0,0.02285609]
[1764678376291,0.22855549,87507.0,87504.0,0.22855967]
[1764678376685,0.2399848,87506.0,87503.0,0.22856125]
[1764678376829,0.23998099,87507.0,87504.0,0.25141703]
[1764678377035,0.22855629,87506.0,87503.0,0.01142817]
[1764678377234,0.23998099,87507.0,87503.0,0.23998917]
[1764678377843,0.23998099,87507.0,87503.0,0.24098917]
[1764678378043,0.23998099,87507.0,87503.0,0.23998917]
[1764678378471,0.23998099,87507.0,87503.0,0.24098917]
[1764678378726,0.22855629,87506.0,87503.0,0.24098917]
[1764678378895,0.23998099,87507.0,87503.0,0.24098917]
[1764678379042,0.23998099,87507.0,87504.0,0.2514162]
[1764678379863,0.22855615,87506.0,87504.0,0.02285609]
[1764678380268,0.01142765,87507.0,87504.0,0.02285609]
[1764678380479,0.22855836,87505.0,87504.0,0.02385609]
[1764678380675,0.22855815,87506.0,87504.0,0.02385609]
[1764678380895,0.22855815,87506.0,87503.0,0.22856296]
[1764678381350,0.01142765,87507.0,87504.0,0.01242804]
[1764678381497,0.239981,87507.0,87504.0,0.01242804]
[1764678381854,0.01142752,87508.0,87504.0,0.01242804]
[1764678382055,0.22855328,87507.0,87504.0,0.23998648]
[1764678382178,0.22855328,87507.0,87505.0,0.02285583]
[1764678382381,0.22855527,87507.0,87505.0,0.02285583]
[1764678382679,0.22855575,87506.0,87505.0,0.02285583]
[1764678382885,0.22855575,87506.0,87504.0,0.01142804]
[1764678383089,0.22855575,87506.0,87504.0,0.23998891]
[1764678383507,0.23998292,87507.0,87504.0,0.23998891]
[1764678383914,0.23998292,87507.0,87504.0,0.24098891]
[1764678384445,0.01142752,87508.0,87505.0,0.01142791]
[1764678384590,0.23997883,87508.0,87505.0,0.23998623]
[1764678384792,0.2285539,87507.0,87505.0,0.01142791]
[1764678385035,0.23998155,87507.0,87504.0,0.24098891]
[1764678385390,0.2285564,87506.0,87504.0,0.001]
[1764678385651,0.22855836,87505.0,87504.0,0.001]
[1764678385850,0.26645836,87505.0,87504.0,0.001]
[1764678386205,0.26645836,87505.0,87501.0,0.01804]
[1764678386206,0.22856555,87503.0,87501.0,0.01804]
[1764678386409,0.01142765,87507.0,87501.0,0.01804]
[1764678386410,0.25160005,87509.0,87503.0,0.01142817]
[1764678386605,0.01142752,87508.0,87504.0,0.23998893]
[1764678386814,0.23997922,87508.0,87504.0,0.23998893]
[1764678387014,0.23997922,87508.0,87505.0,0.23998544]
[1764678387230,0.31429039,87512.0,87508.0,0.23997606]
[1764678387434,0.08575006,87510.0,87509.0,0.23997309]
[1764678387801,0.23995987,87515.0,87512.0,0.23996679]
[1764678387935,0.22853612,87514.0,87510.0,0.23997243]
[1764678388165,0.08575006,87512.0,87510.0,0.23997243]
[1764678388571,0.08575006,87512.0,87511.0,0.22854269]
[1764678388767,0.08575006,87512.0,87510.0,0.23997243]
[1764678389184,0.08575006,87512.0,87511.0,0.22854269]
[1764678389762,0.08575006,87512.0,87510.0,0.01142726]
[1764678390039,0.31429015,87512.0,87510.0,0.23997191]
[1764678390198,0.08575006,87512.0,87511.0,0.22854269]
[1764678394179,0.36250279,87518.0,87513.0,0.22853517]
[1764678394426,0.2285299,87516.0,87513.0,0.23996204]
[1764678394962,0.23995638,87516.0,87513.0,0.23996204]
[1764678395365,0.23996072,87515.0,87512.0,0.23996657]
[1764678397497,0.22853502,87514.0,87512.0,0.23996657]
[1764678397692,0.22853884,87513.0,87509.0,0.2399734]
[1764678397960,0.23996176,87514.0,87509.0,0.2399734]
[1764678397961,0.23996176,87514.0,87511.0,0.22854199]
[1764678398079,0.25222539,87517.0,87513.0,0.23996206]
[1764678398080,0.02369635,87517.0,87513.0,0.23996206]
[1764678398460,0.01142648,87516.0,87513.0,0.23996206]
[1764678398593,0.23995647,87516.0,87513.0,0.23996206]
[1764678398797,0.22853556,87514.0,87511.0,0.01242713]
[1764678399060,0.22853556,87514.0,87511.0,0.2409679]
[1764678399185,0.22853556,87514.0,87512.0,0.22853988]
[1764678399591,0.23995889,87515.0,87513.0,0.22853747]
[1764678399796,0.23995671,87516.0,87513.0,0.22853747]
[1764678400448,0.26549237,87517.0,87514.0,0.22853288]
[1764678400648,0.26549268,87517.0,87515.0,0.22853194]
[1764678400882,0.22853458,87515.0,87512.0,0.23996509]
[1764678401463,0.22853458,87515.0,87513.0,0.22853629]
[1764678401720,0.22853458,87515.0,87512.0,0.23996509]
[1764678402303,0.22853458,87515.0,87513.0,0.22853739]
[1764678402497,0.01142648,87516.0,87514.0,0.22853297]
[1764678402703,0.00119906,87519.0,87514.0,0.22853297]
[1764678402704,0.00119906,87519.0,87518.0,0.22852441]
[1764678403921,0.00129554,87519.0,87518.0,0.22852441]
[1764678405520,0.00129554,87519.0,87518.0,0.22952441]
[1764678405821,0.00129554,87519.0,87518.0,0.22852441]
[1764678406189,0.00129554,87519.0,87518.0,0.23052441]
[1764678411861,0.00129554,87519.0,87518.0,0.24856441]
[1764678418741,0.00129554,87519.0,87518.0,0.23052441]
[1764678418944,0.00129554,87519.0,87518.0,0.24856441]
[1764678419142,0.01142556,87523.0,87518.0,0.24856441]
[1764678419143,0.01142556,87523.0,87520.0,0.22851919]
[1764678419346,0.23993118,87526.0,87522.0,0.22851397]
[1764678419561,0.23993185,87525.0,87521.0,0.23994052]
[1764678419828,0.23993185,87525.0,87522.0,0.22851332]
[1764678420050,0.2399361,87524.0,87521.0,0.23994214]
[1764678420249,0.22851308,87523.0,87520.0,0.22851918]
[1764678420450,0.0114253,87525.0,87522.0,0.22851397]
[1764678420631,0.24001571,87533.0,87528.0,0.2284983]
[1764678420846,0.23991447,87532.0,87528.0,0.23992321]
[1764678421051,0.23991447,87532.0,87529.0,0.22849394]
[1764678421229,0.22848806,87532.0,87529.0,0.23991872]
[1764678421434,0.22849096,87531.0,87529.0,0.01142478]
[1764678421633,0.23991245,87532.0,87529.0,0.23992036]
[1764678421999,0.22850029,87528.0,87524.0,0.23993195]
[1764678422149,0.228501,87527.0,87525.0,0.22850402]
[1764678422347,0.22850164,87527.0,87525.0,0.22850402]
[1764678422572,0.02295478,87529.0,87526.0,0.22850352]
[1764678422769,0.01153,87529.0,87526.0,0.22850296]
[1764678422988,0.01153,87529.0,87528.0,0.2284983]
[1764678424012,0.02295387,87536.0,87530.0,0.01142465]
[1764678424194,0.25143146,87536.0,87532.0,0.01142439]
[1764678424362,0.01153,87536.0,87533.0,0.23990926]
[1764678424582,0.08575006,87534.0,87532.0,0.23991076]
[1764678424778,0.01153,87536.0,87533.0,0.01142426]
[1764678425001,0.08621851,87534.0,87533.0,0.23990757]
[1764678425187,0.08621851,87534.0,87533.0,0.22848525]
[1764678425836,0.00046845,87534.0,87533.0,0.22848525]
[1764678427129,0.00046845,87534.0,87533.0,0.25133377]
[1764678427318,0.00046845,87534.0,87533.0,0.22948525]
[1764678427719,0.00046845,87534.0,87533.0,0.25233377]
[1764678428205,0.00046845,87534.0,87533.0,0.22948525]
[1764678435453,0.00046845,87534.0,87533.0,0.25233377]
[1764678440544,0.00046845,87534.0,87533.0,0.24752525]
[1764678448865,0.00046845,87534.0,87533.0,0.57052525]
[1764678449415,0.00046845,87534.0,87533.0,0.97052525]
[1764678449804,0.00046845,87534.0,87533.0,0.96952525]
[1764678450170,0.00046845,87534.0,87533.0,0.97352525]
[1764678450375,0.00046845,87534.0,87533.0,0.97452525]
[1764678450924,0.00046845,87534.0,87533.0,0.97352525]
[1764678451309,0.00046845,87534.0,87533.0,0.97452525]
[1764678459769,0.00046845,87534.0,87533.0,1.12252525]
[1764678460985,0.00046845,87534.0,87533.0,0.72252525]
[1764678462272,0.00046845,87534.0,87533.0,0.70348525]
[1764678462474,0.00046845,87534.0,87533.0,0.72152525]
[1764678462674,0.00046845,87534.0,87533.0,0.70448525]
[1764678462927,0.00046845,87534.0,87533.0,0.72252525]
[1764678463132,0.00046845,87534.0,87533.0,0.71852525]
[1764678463428,0.00046845,87534.0,87533.0,0.75052525]
[1764678463573,0.00046845,87534.0,87533.0,0.75152525]
[1764678463924,0.00046845,87534.0,87533.0,0.74852525]
[1764678464163,0.00046845,87534.0,87533.0,0.75152525]
[1764678464351,0.00046845,87534.0,87533.0,0.42852525]
[1764678465464,0.00046845,87534.0,87533.0,0.42752525]
[1764678465662,0.00046845,87534.0,87533.0,0.42452525]
[1764678465864,0.00046845,87534.0,87533.0,0.27652525]
[1764678466072,0.00046845,87534.0,87533.0,0.27852525]
[1764678473903,0.00046845,87534.0,87533.0,0.26048525]
[1764678474110,0.00046845,87534.0,87533.0,0.27852525]
[1764678478033,0.36225727,87543.0,87540.0,0.01142334]
[1764678478237,0.23987424,87546.0,87543.0,0.01142295]
[1764678478379,0.01180627,87546.0,87544.0,0.22845579]
[1764678478590,0.00038371,87546.0,87544.0,0.22845579]
[1764678478805,0.00038371,87546.0,87545.0,0.22845393]
[1764678478966,0.22883718,87546.0,87543.0,0.23987739]
[1764678479317,0.01218094,87546.0,87540.0,0.01142334]
[1764678479463,0.23987847,87545.0,87542.0,0.22845961]
[1764678479861,0.23987847,87545.0,87543.0,0.22845894]
[1764678480101,0.23987682,87545.0,87543.0,0.22845894]
[1764678480277,0.01142269,87545.0,87543.0,0.22845894]
[1764678480464,0.24025846,87546.0,87543.0,0.22845894]
[1764678480823,0.00038371,87546.0,87544.0,0.22845654]
[1764678481049,0.00038371,87546.0,87545.0,0.22845393]
[1764678481373,0.22845393,87545.0,87543.0,0.22845913]
[1764678481570,0.01142269,87545.0,87543.0,0.22845913]
[1764678481823,0.00038371,87546.0,87543.0,0.23988208]
[1764678482015,0.22883584,87546.0,87543.0,0.23988208]
[1764678482197,0.22845448,87545.0,87543.0,0.23988208]
[1764678482399,0.01142295,87543.0,87538.0,0.01142361]
[1764678482623,0.0115,87540.0,87539.0,0.22846744]
[1764678484376,0.01142347,87539.0,87534.0,0.69823601]
[1764678484547,0.01142347,87539.0,87535.0,0.01804]
[1764678484548,0.23989772,87538.0,87535.0,0.01804]
[1764678484902,0.22847674,87537.0,87535.0,0.01804]
[1764678485074,0.23989596,87538.0,87536.0,0.22847742]
[1764678485279,0.23989535,87539.0,87536.0,0.22847699]
[1764678485440,0.0115,87540.0,87538.0,0.2284721]
[1764678485991,0.0115,87540.0,87537.0,0.23989855]
[1764678486200,0.0115,87540.0,87538.0,0.22847219]
[1764678486358,0.23996739,87540.0,87537.0,0.23989855]
[1764678486552,0.22846987,87539.0,87537.0,0.23989855]
[1764678486768,0.22846993,87539.0,87537.0,0.23989855]
[1764678486959,0.25139073,87540.0,87537.0,0.23989855]
[1764678487366,0.22847413,87538.0,87536.0,0.22847691]
[1764678487725,0.02792374,87537.0,87534.0,0.69823601]
[1764678487902,0.0165,87536.0,87534.0,0.69823601]
[1764678488106,0.0165,87536.0,87535.0,0.22848003]
[1764678488433,0.02292334,87540.0,87537.0,0.01142374]
[1764678488636,0.0115,87540.0,87537.0,0.01142374]
[1764678489042,0.0165,87538.0,87534.0,0.69823601]
[1764678489166,0.25639633,87538.0,87535.0,0.23990204]
[1764678489373,0.01142361,87538.0,87536.0,0.22847638]
[1764678489571,0.22871292,87542.0,87538.0,0.2398936]
[1764678489813,0.240136,87542.0,87538.0,0.2398936]
[1764678489986,0.22846701,87540.0,87538.0,0.01142361]
[1764678490323,0.22848003,87535.0,87534.0,0.69823601]
[1764678490683,0.22847742,87536.0,87534.0,0.69823601]
[1764678490883,0.22848003,87535.0,87534.0,0.69823601]
[1764678491083,0.24498003,87535.0,87534.0,0.69823601]
[1764678491306,0.26836003,87535.0,87534.0,0.69823601]
[1764678492110,0.26836003,87535.0,87534.0,0.69923601]
[1764678499426,0.26836003,87535.0,87534.0,0.69823601]
[1764678502010,0.26776003,87535.0,87534.0,0.69823601]
[1764678502563,0.27977003,87535.0,87534.0,0.69823601]
[1764678504387,0.27977003,87535.0,87534.0,0.69817392]
[1764678507672,0.27977003,87535.0,87534.0,0.69757392]
[1764678510782,0.22848264,87534.0,87533.0,0.03]
[1764678510931,0.24498264,87534.0,87533.0,0.03]
[1764678511332,0.26836264,87534.0,87533.0,0.03]
[1764678514092,0.26776264,87534.0,87533.0,0.03]
[1764678514294,0.29245339,87534.0,87533.0,0.005]
[1764678514502,0.22854008,87512.0,87506.0,0.01804]
[1764678514705,0.22854008,87512.0,87503.0,0.00654]
[1764678514706,0.34167014,87512.0,87503.0,0.00654]
[1764678514866,0.36484014,87512.0,87503.0,0.00654]
[1764678515289,0.38288014,87512.0,87503.0,0.00654]
[1764678516887,0.38288014,87512.0,87503.0,0.01796817]
[1764678517087,0.38288014,87512.0,87504.0,0.01142804]
[1764678517338,0.38288014,87512.0,87503.0,0.01796817]
[1764678517647,0.38288014,87512.0,87504.0,0.01142804]
[1764678517802,0.38288014,87512.0,87503.0,0.01796817]
[1764678518004,0.38288014,87512.0,87503.0,0.00654]
[1764678518221,0.38288014,87512.0,87504.0,0.22855848]
[1764678518401,0.38288014,87512.0,87505.0,0.22855787]
[1764678518620,0.38288014,87512.0,87505.0,0.23998578]
[1764678518783,0.38288014,87512.0,87505.0,0.01142791]
[1764678519389,0.38288014,87512.0,87504.0,0.23998896]
[1764678520011,0.38288014,87512.0,87505.0,0.01142791]
[1764678520222,0.38288014,87512.0,87503.0,0.01796817]
[1764678520424,0.38288014,87512.0,87504.0,0.01142804]
[1764678521386,0.38288014,87512.0,87503.0,0.01796817]
[1764678521570,0.38288014,87512.0,87504.0,0.01142804]
[1764678521791,0.38288014,87512.0,87503.0,0.00654]
[1764678521994,0.38288014,87512.0,87503.0,0.01796817]
[1764678522337,0.38288014,87512.0,87503.0,0.00654]
[1764678523438,0.38288014,87512.0,87511.0,0.00159895]
[1764678524843,0.36484014,87512.0,87511.0,0.00159895]
[1764678527442,2.36484014,87512.0,87511.0,0.00159895]
[1764678528491,2.36584014,87512.0,87511.0,0.00159895]
[1764678529725,2.36484014,87512.0,87511.0,0.00159895]
[1764678530092,2.36584014,87512.0,87511.0,0.00159895]
[1764678530391,2.36484014,87512.0,87511.0,0.00159895]
[1764678530611,2.36784014,87512.0,87511.0,0.00159895]
[1764678531011,2.36884014,87512.0,87511.0,0.00159895]
[1764678535221,2.40319127,87512.0,87511.0,0.00159895]
[1764678536006,2.40019127,87512.0,87511.0,0.00159895]
[1764678536147,2.39919127,87512.0,87511.0,0.00159895]
[1764678536346,0.40219127,87512.0,87511.0,0.00159895]
[1764678537182,0.37902127,87512.0,87511.0,0.00159895]
[1764678537610,0.40041127,87512.0,87511.0,0.00159895]
[1764678537845,0.27931008,87512.0,87511.0,0.00159895]
[1764678538055,0.36706014,87512.0,87511.0,0.00159895]
[1764678539335,0.32775014,87512.0,87511.0,0.00159895]
[1764678540289,0.09921006,87512.0,87511.0,0.00159895]
[1764678540469,0.32775014,87512.0,87511.0,0.00159895]
[1764678543961,0.08775006,87512.0,87511.0,0.00159895]
[1764678544157,0.31629014,87512.0,87511.0,0.00159895]
[1764678550486,0.002,87512.0,87511.0,0.24615164]
[1764678550771,0.002,87512.0,87511.0,0.23014164]
[1764678552366,0.01247,87514.0,87513.0,0.22853747]
[1764678552949,0.01146,87520.0,87518.0,0.22852215]
[1764678553153,0.01131,87522.0,87519.0,0.23994687]
[1764678553414,0.01142569,87522.0,87521.0,0.00654]
[1764678553535,0.23993966,87522.0,87521.0,0.00654]
[1764678554253,0.22852464,87518.0,87513.0,0.2285352]
[1764678554450,0.01142609,87519.0,87516.0,0.01142648]
[1764678554728,0.23994943,87519.0,87516.0,0.23995388]
[1764678554917,0.01142609,87519.0,87516.0,0.23995388]
[1764678555143,0.25241876,87519.0,87516.0,0.23995388]
[1764678555347,0.2524179,87519.0,87517.0,0.22852625]
[1764678555705,0.02389609,87519.0,87516.0,0.23995388]
[1764678556228,0.25242001,87519.0,87516.0,0.23995388]
[1764678556590,0.23995297,87518.0,87514.0,0.24495915]
[1764678556827,0.02389609,87519.0,87515.0,0.01142661]
[1764678557008,0.01247,87519.0,87516.0,0.23995493]
[1764678557207,0.2409924,87519.0,87516.0,0.23995493]
[1764678557579,0.01247,87519.0,87517.0,0.22852698]
[1764678557795,0.37501374,87527.0,87522.0,0.01142569]
[1764678558007,0.22850029,87528.0,87525.0,0.00654]
[1764678558251,0.01247,87530.0,87526.0,0.01142517]
[1764678558461,0.01247,87535.0,87530.0,0.01142465]
[1764678558662,0.01247,87535.0,87533.0,0.22848308]
[1764678559242,0.23989859,87537.0,87533.0,0.23990734]
[1764678559592,0.2284775,87536.0,87534.0,0.005]
[1764678559723,0.001,87535.0,87534.0,0.005]
[1764678560135,0.23989859,87537.0,87534.0,0.23348264]
[1764678560564,0.23989859,87537.0,87534.0,0.005]
[1764678560762,0.23989859,87537.0,87534.0,0.23348148]
[1764678561306,0.01142321,87541.0,87536.0,0.01142387]
[1764678561459,0.23989369,87539.0,87535.0,0.23990363]
[1764678561674,0.23989363,87539.0,87536.0,0.23990099]
[1764678562489,0.01142321,87541.0,87537.0,0.01142374]
[1764678562658,0.01142321,87541.0,87538.0,0.22846989]
[1764678562863,0.23989274,87540.0,87536.0,0.23989912]
[1764678563063,0.01142334,87540.0,87536.0,0.23989912]
[1764678563511,0.22847082,87539.0,87537.0,0.22847481]
[1764678564200,0.001,87541.0,87538.0,0.02743361]
[1764678564393,0.001,87541.0,87540.0,0.22846698]
[1764678565002,0.00024979,87542.0,87541.0,0.22846437]
[1764678565396,0.00024979,87542.0,87541.0,0.23500437]
[1764678566713,0.00024979,87542.0,87541.0,0.25101437]
[1764678568739,0.00024979,87542.0,87541.0,0.02255]
[1764678568944,0.00024979,87542.0,87541.0,0.25101437]
[1764678569764,0.00024979,87542.0,87541.0,0.59210437]
[1764678571467,0.00024979,87542.0,87541.0,0.59410437]
[1764678572577,0.00024979,87542.0,87541.0,0.59510437]
[1764678582821,0.36219353,87560.0,87559.0,0.2284174]
[1764678583098,0.01247,87569.0,87567.0,0.22839589]
[1764678583099,0.37501374,87569.0,87567.0,0.22839589]
[1764678583234,0.01285395,87569.0,87567.0,0.22839589]
[1764678584057,0.26528636,87569.0,87567.0,0.22839589]
[1764678584829,0.00238395,87569.0,87568.0,0.25108393]
[1764678584962,0.00238395,87569.0,87568.0,0.26917393]
[1764678585674,0.00038395,87569.0,87568.0,0.26917393]
[1764678586097,0.00138395,87569.0,87568.0,0.26917393]
[1764678587781,0.00038395,87569.0,87568.0,0.26917393]
[1764678588201,0.00038395,87569.0,87568.0,0.27017393]
[1764678590105,0.00038395,87569.0,87568.0,0.25208393]
[1764678590329,0.00038395,87569.0,87568.0,0.27017393]
[1764678590633,0.00122671,87569.0,87568.0,0.27017393]
[1764678598412,0.24181803,87569.0,87568.0,0.001]
[1764678598628,0.28212803,87569.0,87568.0,0.001]
[1764678598975,0.25808803,87569.0,87568.0,0.001]
[1764678599967,0.25808803,87569.0,87563.0,0.23982573]
[1764678599968,0.22840135,87566.0,87563.0,0.01142034]
[1764678600141,0.2398213,87566.0,87564.0,0.01804]
[1764678600434,0.23982183,87565.0,87560.0,0.23983329]
[1764678600647,0.23982513,87564.0,87563.0,0.01804]
[1764678601401,0.23982513,87564.0,87561.0,0.23983218]
[1764678601611,0.22840749,87563.0,87561.0,0.0114206]
[1764678601775,0.22840749,87563.0,87562.0,0.01804]
[1764678601982,0.22840345,87565.0,87562.0,0.26259935]
[1764678602184,0.22840345,87565.0,87562.0,0.25597982]
[1764678602382,0.22840345,87565.0,87562.0,0.27401982]
[1764678602842,0.22840464,87564.0,87562.0,0.25597982]
[1764678602998,0.23981992,87566.0,87563.0,0.24644604]
[1764678603392,0.00911763,87566.0,87563.0,0.24644451]
[1764678603708,0.23751819,87566.0,87563.0,0.24644451]
[1764678603883,0.01141995,87566.0,87563.0,0.01804]
[1764678604084,0.22840436,87564.0,87563.0,0.01804]
[1764678604801,0.22840281,87565.0,87563.0,0.01804]
[1764678605000,0.23981945,87566.0,87563.0,0.24644688]
[1764678605201,0.01141982,87567.0,87564.0,0.22840427]
[1764678605404,0.23981407,87568.0,87564.0,0.23982448]
[1764678605818,0.22839806,87567.0,87564.0,0.23982448]
[1764678606037,0.00071794,87565.0,87564.0,0.23982448]
[1764678607083,0.00071794,87565.0,87563.0,0.25786682]
[1764678607213,0.22839942,87566.0,87563.0,0.25786682]
[1764678607432,0.00068673,87564.0,87563.0,0.25786682]
[1764678608087,0.00068673,87564.0,87563.0,0.27404682]
[1764678608949,0.00068673,87564.0,87563.0,0.27409731]
[1764678610556,0.00068673,87564.0,87563.0,0.27509731]
[1764678610785,0.00068673,87564.0,87563.0,0.27409731]
[1764678611052,0.00068673,87564.0,87563.0,0.27609731]
[1764678611816,0.00068673,87564.0,87563.0,0.60009731]
[1764678618496,0.00068673,87564.0,87563.0,0.59909731]
[1764678618704,0.00068673,87564.0,87563.0,0.60009731]
[1764678619466,0.00068673,87564.0,87563.0,0.59809731]
[1764678619878,0.00068673,87564.0,87563.0,0.60009731]
[1764678627106,0.00068673,87564.0,87563.0,0.63441265]
[1764678627527,0.00038395,87569.0,87568.0,0.22839393]
[1764678627752,0.00038395,87569.0,87568.0,0.27395332]
[1764678627958,0.00038395,87569.0,87568.0,0.35495399]
[1764678628168,0.00024967,87572.0,87571.0,0.2283861]
[1764678628371,0.00036476,87572.0,87571.0,0.28549471]
[1764678628554,0.00036476,87572.0,87571.0,0.2626561]
[1764678628715,0.00036476,87572.0,87571.0,0.29696759]
[1764678629127,0.00036476,87572.0,87571.0,0.35949058]
[1764678629334,0.00036476,87572.0,87571.0,0.83049058]
[1764678629335,4.76e-06,87572.0,87571.0,0.83049058]
[1764678630213,4.76e-06,87572.0,87571.0,0.83349058]
[1764678630416,4.76e-06,87572.0,87571.0,0.83149058]
[1764678630823,0.09790476,87577.0,87576.0,0.55137307]
[1764678631052,0.09790476,87577.0,87576.0,0.57332307]
[1764678631254,0.09790476,87577.0,87576.0,1.05393606]
[1764678631397,0.09790476,87577.0,87576.0,1.08824308]
[1764678632281,0.09790476,87577.0,87576.0,1.09024308]
[1764678632489,0.09790476,87577.0,87576.0,3.09024308]
[1764678632903,0.09790476,87577.0,87576.0,3.09124308]
[1764678633116,1e-08,87580.0,87579.0,0.62927823]
[1764678633319,1e-08,87580.0,87579.0,0.64731823]
[1764678633524,1e-08,87580.0,87579.0,0.66540823]
[1764678633727,1e-08,87580.0,87579.0,2.66540823]
[1764678633990,1e-08,87580.0,87579.0,3.06540823]
[1764678634625,1e-08,87580.0,87579.0,3.06640823]
[1764678635360,1e-08,87580.0,87579.0,3.07040823]
[1764678635795,1e-08,87580.0,87579.0,3.06540823]
[1764678636028,1e-08,87580.0,87579.0,3.07140823]
[1764678636424,0.00024964,87580.0,87579.0,3.06940823]
[1764678636581,1e-08,87580.0,87579.0,3.06940823]
[1764678636783,1e-08,87580.0,87579.0,3.21940823]
[1764678640802,1e-08,87580.0,87579.0,3.20136823]
[1764678641022,1e-08,87580.0,87579.0,1.15688524]
[1764678641517,1e-08,87580.0,87579.0,0.81584524]
[1764678641819,1e-08,87580.0,87579.0,1.00488524]
[1764678642164,1e-08,87580.0,87579.0,0.98684524]
[1764678642369,1e-08,87580.0,87579.0,1.00488524]
[1764678642615,1e-08,87580.0,87579.0,1.00588524]
[1764678643477,1e-08,87580.0,87579.0,1.01045961]
[1764678646388,1e-08,87580.0,87579.0,1.0729826]
[1764678646801,1e-08,87580.0,87579.0,1.2209826]
[1764678658245,1e-08,87580.0,87579.0,3.2209826]
[1764678659453,1e-08,87590.0,87589.0,2.63640216]
[1764678659640,1e-08,87590.0,87589.0,2.80244216]
[1764678659892,1e-08,87590.0,87589.0,2.82053216]
[1764678660090,1e-08,87590.0,87589.0,2.8251054]
[1764678660285,1e-08,87590.0,87589.0,3.2251054]
[1764678660566,0.0002,87600.0,87599.0,0.61383609]
[1764678660721,0.00031503,87600.0,87599.0,0.75209615]
[1764678660904,1e-08,87600.0,87599.0,0.75209615]
[1764678661086,1e-08,87600.0,87599.0,1.15666873]
[1764678661286,1e-08,87600.0,87599.0,1.24246603]
[1764678661708,1e-08,87600.0,87599.0,1.22442603]
[1764678661910,1e-08,87600.0,87599.0,1.24246603]
[1764678662131,1e-08,87600.0,87599.0,1.09419298]
[1764678662361,1e-08,87600.0,87599.0,1.09619298]
[1764678662507,1e-08,87600.0,87599.0,1.18194304]
[1764678663360,1e-08,87600.0,87599.0,1.18494304]
[1764678663534,1e-08,87600.0,87599.0,1.09414574]
[1764678663750,1e-08,87600.0,87599.0,1.09514574]
[1764678663936,1e-08,87600.0,87599.0,1.09614574]
[1764678664767,1e-08,87600.0,87599.0,1.24414574]
[1764678670300,0.01238,87632.0,87599.0,1.24414574]
[1764678670301,0.0002,87660.0,87647.0,0.0114094]
[1764678670514,0.00031505,87650.0,87649.0,0.57345286]
[1764678670920,0.00031505,87650.0,87649.0,0.59591358]
[1764678671162,0.00249748,87650.0,87649.0,0.57802358]
[1764678671396,0.00249748,87650.0,87649.0,0.59591358]
[1764678673137,0.00249748,87650.0,87649.0,0.59691358]
[1764678673595,0.00249748,87650.0,87649.0,0.59591358]
[1764678674052,0.00249748,87650.0,87649.0,0.59691358]
[1764678675353,0.00249748,87650.0,87649.0,0.99691358]
[1764678676591,0.00249748,87650.0,87649.0,0.59691358]
[1764678676855,0.00249748,87650.0,87649.0,0.57902358]
[1764678677086,0.00249748,87650.0,87649.0,0.57445286]
[1764678677316,0.00249748,87650.0,87649.0,0.57345286]
[1764678677534,0.00249748,87650.0,87649.0,0.57445286]
[1764678678938,0.00249748,87650.0,87649.0,0.57345286]
[1764678680762,0.00249748,87650.0,87649.0,0.55734286]
[1764678680974,0.00249748,87650.0,87649.0,0.23434286]
[1764678681186,0.06631649,87650.0,87642.0,0.01141005]
[1764678681396,0.10157006,87649.0,87645.0,0.23960292]
[1764678681631,0.01582,87649.0,87646.0,0.01140953]
[1764678681833,0.01582,87649.0,87647.0,0.22818756]
[1764678682059,0.01582,87649.0,87648.0,0.22818546]
[1764678682686,0.01582,87649.0,87644.0,0.01140979]
[1764678682892,0.01582,87645.0,87640.0,0.22820629]
[1764678683038,0.02722992,87643.0,87640.0,0.01141031]
[1764678683232,0.01582,87641.0,87640.0,0.2396158]
[1764678683473,0.04003,87641.0,87640.0,0.2396158]
[1764678683855,0.04193203,87641.0,87640.0,0.2396158]
[1764678684473,0.01772203,87641.0,87640.0,0.2396158]
[1764678684677,0.04193203,87641.0,87640.0,0.2396158]
[1764678684917,0.04193203,87641.0,87634.0,0.00596]
[1764678685059,0.01582,87639.0,87636.0,0.01141083]
[1764678685258,0.01582,87639.0,87636.0,0.23962713]
[1764678685477,0.04003,87639.0,87636.0,0.01141083]
[1764678685702,0.00177739,87637.0,87636.0,0.23962699]
[1764678686728,0.00177739,87637.0,87636.0,0.24062699]
[1764678687135,0.01759739,87637.0,87636.0,0.24062699]
[1764678688135,0.01759739,87637.0,87636.0,0.23962699]
[1764678688297,0.04280739,87637.0,87636.0,0.22821671]
[1764678689101,0.04280739,87637.0,87633.0,0.23963322]
[1764678689328,0.01582,87634.0,87633.0,0.23963314]
[1764678689488,0.0282,87634.0,87633.0,0.23963314]
[1764678690763,0.05241,87634.0,87628.0,0.01141187]
[1764678690968,0.01141213,87626.0,87617.0,0.02945331]
[1764678691168,0.01141278,87621.0,87617.0,0.01141331]
[1764678691319,0.01238,87618.0,87615.0,0.24584495]
[1764678691753,0.01238,87618.0,87615.0,0.00616]
[1764678691973,0.01238,87618.0,87604.0,0.02385]
[1764678691974,0.01141357,87615.0,87604.0,0.00596]
[1764678692164,0.01141435,87609.0,87604.0,0.017375]
[1764678692363,0.01141435,87609.0,87605.0,0.01141487]
[1764678692543,0.0123,87605.0,87604.0,0.23971429]
[1764678692741,0.0123,87605.0,87602.0,0.01141526]
[1764678693169,0.01141526,87602.0,87597.0,0.22831823]
[1764678693343,0.01141604,87596.0,87587.0,0.01141552]
[1764678693545,0.0123,87589.0,87587.0,0.00011503]
[1764678693742,0.01647,87588.0,87587.0,0.00011503]
[1764678694396,0.04034,87588.0,87587.0,0.00011503]
[1764678695632,0.04234,87588.0,87587.0,0.00011503]
[1764678696859,0.002,87588.0,87587.0,0.00011503]
[1764678698615,0.002,87588.0,87587.0,0.22845941]
[1764678701085,0.0022496,87588.0,87587.0,0.22845941]